[Event "DVM U14 2024"]
[Site "Heidelberg"]
[Date "2024.12.29"]
[Round "6"]
[White "Ahryzkov, Ivan"]
[Black "Yang, Sophie"]
[Result "1-0"]
[ECO "C06"]
[WhiteElo "1813"]
[BlackElo "1547"]
[Annotator "NA RC"]
[PlyCount "79"]
[EventDate "2024.12.23"]
[EventType "team-tourn"]
[EventRounds "7"]
[EventCountry "GER"]
[SourceTitle "playchess.com"]
[Source "ChessBase"]
[SourceQuality "1"]
[TimeControl "40/5400+30:1800+30"]

1. e4 {[%emt 0:00:03]} e6 {[%emt 0:00:08]} 2. d4 {[%emt 0:00:13]} d5 {[%emt 0:00:06]} 3. Nd2 {[%emt 0:00:52]} Nf6 {[%emt 0:00:10]} 4. e5 {[%emt 0:00:18]} Nfd7 {[%emt 0:00:11]} 5. Ndf3 {[%emt 0:02:59]} c5 {[%emt 0:00:53]} 6. c3 {[%emt 0:00:20]} Nc6 {[%emt 0:00:03]} 7. Bd3 {[%emt 0:00:46]} Qb6 {[%emt 0:00:26]} 8. Ne2 {[%emt 0:01:15]} f6 {[%emt 0:04:55]} 9. exf6 {[%emt 0:09:26]} Nxf6 {[%emt 0:00:16]} 10. O-O {[%emt 0:01:03]} Bd6 {[%emt 0:00:45]} 11. Ng3 {[%emt 0:07:17]} O-O {[%emt 0:00:38]} 12. Re1 {[%emt 0:00:26]} h6 {[%emt 0:01:17]} 13. Bb1 {[%emt 0:06:00]} cxd4 {[%emt 0:01:49]} 14. cxd4 {[%emt 0:00:06]} Re8 {[%emt 0:02:52]} 15. b3 {[%emt 0:12:23]} e5 {[%emt 0:01:06]} 16. Bg6 {[%emt 0:08:07]} Re7 {[%emt 0:01:15]} 17. dxe5 {[%emt 0:03:22]} Nxe5 {[%emt 0:00:32]} 18. Nxe5 {[%emt 0:01:41]} Rxe5 {[%emt 0:00:23]} 19. Be3 {[%emt 0:01:18]} Qc7 {[%emt 0:01:29]} 20. Rc1 {[%emt 0:06:39]} Qd8 {[%emt 0:02:14]} 21. Qd4 {[%emt 0:04:00]} b6 {[%emt 0:03:57]} 22. f4 {[%emt 0:18:55]} Re7 {[%emt 0:01:07]} 23. Nh5 {[%emt 0:00:36]} Nxh5 {[%emt 0:01:22]} 24. Qxd5+ {[%emt 0:00:44]} Kh8 {[%emt 0:02:25]} 25. Qxa8 {[%emt 0:01:17]} Rc7 {[%emt 0:01:36]} 26. Rxc7 {[%emt 0:00:39]} Bxc7 {[%emt 0:00:24]} 27. Bxh5 {[%emt 0:00:38]} Qd7 {[%emt 0:01:28]} 28. Bf2 {[%emt 0:00:43]} Kh7 {[%emt 0:01:28]} 29. Qe4+ {[%emt 0:00:11]} Kh8 {[%emt 0:01:11]} 30. Qe8+ {[%emt 0:00:05]} Qxe8 {[%emt 0:00:24]} 31. Rxe8+ {[%emt 0:00:05]} Kh7 {[%emt 0:00:10]} 32. Rxc8 {[%emt 0:00:07]} Bxf4 {[%emt 0:00:08]} 33. Ra8 {[%emt 0:00:15]} a5 {[%emt 0:00:23]} 34. Bd4 {[%emt 0:00:16]} Bd6 {[%emt 0:00:23]} 35. Ra7 {[%emt 0:00:09]} Bf8 {[%emt 0:00:12]} 36. Bxb6 {[%emt 0:00:09]} Kg8 {[%emt 0:01:01]} 37. Bg6 {[%emt 0:00:13]} h5 {[%emt 0:00:13]} 38. Ra8 {[%emt 0:00:02]} h4 {[%emt 0:00:16]} 39. Bc5 {[%emt 0:00:07]} h3 {[%emt 0:00:06]} 40. Rxf8# {[%emt 0:00:04]} 1-0

[Event "DVM U14 2024"]
[Site "Heidelberg"]
[Date "2024.12.29"]
[Round "6"]
[White "Gundermann, Mika Oleg"]
[Black "Nawrath, Lars"]
[Result "1-0"]
[ECO "D00"]
[WhiteElo "1798"]
[BlackElo "1189"]
[Annotator "NA RC"]
[PlyCount "52"]
[EventDate "2024.12.23"]
[EventType "team-tourn"]
[EventRounds "7"]
[EventCountry "GER"]
[SourceTitle "playchess.com"]
[Source "ChessBase"]
[SourceQuality "1"]
[TimeControl "40/5400+30:1800+30"]

1. d4 {[%emt 0:00:03]} Nf6 {[%emt 0:00:05]} 2. Nc3 {[%emt 0:00:04]} d5 {[%emt 0:00:20]} 3. Bf4 {[%emt 0:00:06]} Bf5 {[%emt 0:01:48]} 4. f3 {[%emt 0:01:10]} e6 {[%emt 0:01:53]} 5. g4 {[%emt 0:02:22]} Bg6 {[%emt 0:00:24]} 6. h4 {[%emt 0:00:42]} h6 {[%emt 0:00:09]} 7. e3 {[%emt 0:00:34]} c5 {[%emt 0:05:53]} 8. Bd3 {[%emt 0:05:18]} Bxd3 {[%emt 0:03:13]} 9. Qxd3 {[%emt 0:02:18]} Nc6 {[%emt 0:02:01]} 10. Nge2 {[%emt 0:02:52]} Qb6 {[%emt 0:00:18]} 11. O-O-O {[%emt 0:01:37]} O-O-O {[%emt 0:07:40]} 12. dxc5 {[%emt 0:09:52]} Bxc5 {[%emt 0:01:44]} 13. Na4 {[%emt 0:01:18]} Qa5 {[%emt 0:03:24]} 14. Nxc5 {[%emt 0:01:13]} Qxc5 {[%emt 0:00:10]} 15. Nd4 {[%emt 0:02:41]} Na5 {[%emt 0:07:40]} 16. Qb5 {[%emt 0:03:38]} Qxb5 {[%emt 0:03:53]} 17. Nxb5 {[%emt 0:00:44]} Nc6 {[%emt 0:01:23]} 18. Nd6+ {[%emt 0:00:26]} Rxd6 {[%emt 0:01:19]} 19. Bxd6 {[%emt 0:00:07]} Kd7 {[%emt 0:00:03]} 20. Bg3 {[%emt 0:01:11]} Rc8 {[%emt 0:00:36]} 21. a3 {[%emt 0:00:35]} Na5 {[%emt 0:04:31]} 22. e4 {[%emt 0:01:57]} Ke7 {[%emt 0:05:08]} 23. exd5 {[%emt 0:00:52]} Nxd5 {[%emt 0:00:14]} 24. Rhe1 {[%emt 0:03:50]} a6 {[%emt 0:07:16]} 25. Rxd5 {[%emt 0:02:21]} b5 {[%emt 0:04:47]} 26. Rd3 {[%emt 0:03:30]} Rc6 {[%emt 0:03:41]} 1-0

[Event "DVM U14 2024"]
[Site "Heidelberg"]
[Date "2024.12.29"]
[Round "6"]
[White "Allen, Phillipp"]
[Black "Yan, Haichen"]
[Result "1/2-1/2"]
[ECO "A33"]
[WhiteElo "1793"]
[BlackElo "1732"]
[Annotator "NA RC"]
[PlyCount "101"]
[EventDate "2024.12.23"]
[EventType "team-tourn"]
[EventRounds "7"]
[EventCountry "GER"]
[SourceTitle "playchess.com"]
[Source "ChessBase"]
[SourceQuality "1"]
[TimeControl "40/5400+30:1800+30"]

1. e4 {[%emt 0:00:03]} c5 {[%emt 0:00:06]} 2. c4 {[%emt 0:00:14]} Nc6 {[%emt 0:00:52]} 3. Nc3 {[%emt 0:00:20]} e6 {[%emt 0:04:22]} 4. g3 {[%emt 0:01:16]} Nf6 {[%emt 0:05:39]} 5. Bg2 {[%emt 0:00:20]} Be7 {[%emt 0:01:27]} 6. Nge2 {[%emt 0:00:24]} O-O {[%emt 0:00:34]} 7. O-O {[%emt 0:00:23]} d6 {[%emt 0:01:50]} 8. d4 {[%emt 0:03:10]} cxd4 {[%emt 0:04:00]} 9. Nxd4 {[%emt 0:00:18]} e5 {[%emt 0:04:15]} 10. Nc2 {[%emt 0:03:38]} Be6 {[%emt 0:06:41]} 11. b3 {[%emt 0:02:18]} Qd7 {[%emt 0:10:14]} 12. Ba3 {[%emt 0:06:31]} a6 {[%emt 0:01:11]} 13. Qe2 {[%emt 0:03:07]} Qc7 {[%emt 0:02:40]} 14. Rac1 {[%emt 0:04:14]} Rfd8 {[%emt 0:07:33]} 15. Nd5 {[%emt 0:17:07]} Bxd5 {[%emt 0:04:46]} 16. cxd5 {[%emt 0:00:00]} Na7 {[%emt 0:01:24]} 17. Ne3 {[%emt 0:00:00]} Qd7 {[%emt 0:04:02]} 18. Nc4 {[%emt 0:03:08]} Rab8 {[%emt 0:03:53]} 19. Nb6 {[%emt 0:17:39]} Qb5 {[%emt 0:00:56]} 20. Qxb5 {[%emt 0:00:16]} Nxb5 {[%emt 0:00:10]} 21. Bb2 {[%emt 0:00:24]} Nd7 {[%emt 0:07:48]} 22. Nxd7 {[%emt 0:00:31]} Rxd7 {[%emt 0:00:07]} 23. a4 {[%emt 0:00:19]} Nd4 {[%emt 0:01:12]} 24. Bxd4 {[%emt 0:00:29]} exd4 {[%emt 0:00:08]} 25. Bh3 {[%emt 0:01:06]} Rdd8 {[%emt 0:00:14]} 26. Rc7 {[%emt 0:01:40]} Bf6 {[%emt 0:01:03]} 27. Rfc1 {[%emt 0:03:44]} g6 {[%emt 0:02:54]} 28. Rc8 {[%emt 0:02:29]} Kg7 {[%emt 0:02:14]} 29. Rxb8 {[%emt 0:00:58]} Rxb8 {[%emt 0:00:10]} 30. Rc8 {[%emt 0:00:16]} Rxc8 {[%emt 0:00:49]} 31. Bxc8 {[%emt 0:00:08]} d3 {[%emt 0:00:52]} 32. Kf1 {[%emt 0:00:13]} a5 {[%emt 0:00:43]} 33. Bxb7 {[%emt 0:00:42]} Bc3 {[%emt 0:00:31]} 34. Ba6 {[%emt 0:01:25]} d2 {[%emt 0:00:08]} 35. Ke2 {[%emt 0:00:05]} Kf6 {[%emt 0:03:40]} 36. f4 {[%emt 0:01:08]} g5 {[%emt 0:01:11]} 37. fxg5+ {[%emt 0:20:27]} Kxg5 {[%emt 0:00:23]} 38. e5 {[%emt 0:02:34]} dxe5 {[%emt 0:01:35]} 39. d6 {[%emt 0:00:30]} Kf6 {[%emt 0:00:13]} 40. Bc8 {[%emt 0:01:02]} Bb4 {[%emt 0:00:48]} 41. Bg4 {[%emt 0:32:48]} Bxd6 {[%emt 0:31:08]} 42. Kxd2 {[%emt 0:00:55]} Kg5 {[%emt 0:02:03]} 43. Bd1 {[%emt 0:01:43]} f5 {[%emt 0:00:52]} 44. h4+ {[%emt 0:00:33]} Kf6 {[%emt 0:02:28]} 45. g4 {[%emt 0:01:31]} h6 {[%emt 0:04:06]} 46. gxf5 {[%emt 0:00:00]} Kxf5 {[%emt 0:00:00]} 47. h5 {[%emt 0:00:00]} e4 {[%emt 0:00:00]} 48. Be2 {[%emt 0:00:00]} Bb4+ {[%emt 0:00:00]} 49. Ke3 {[%emt 0:00:00]} Bc5+ {[%emt 0:00:00]} 50. Kd2 {[%emt 0:00:00]} Bb4+ {[%emt 0:00:00]} 51. Ke3 {[%emt 0:00:00]} 1/2-1/2

[Event "DVM U14 2024"]
[Site "Heidelberg"]
[Date "2024.12.29"]
[Round "6"]
[White "Fridlin, Daniel"]
[Black "Li, Xiao Teng"]
[Result "1-0"]
[ECO "C47"]
[WhiteElo "1789"]
[BlackElo "1661"]
[Annotator "NA RC"]
[PlyCount "77"]
[EventDate "2024.12.23"]
[EventType "team-tourn"]
[EventRounds "7"]
[EventCountry "GER"]
[SourceTitle "playchess.com"]
[Source "ChessBase"]
[SourceQuality "1"]
[TimeControl "40/5400+30:1800+30"]

1. e4 {[%emt 0:00:01]} e5 {[%emt 0:00:05]} 2. Nf3 {[%emt 0:00:06]} Nc6 {[%emt 0:00:03]} 3. Nc3 {[%emt 0:00:04]} Nf6 {[%emt 0:01:14]} 4. d4 {[%emt 0:00:11]} exd4 {[%emt 0:02:55]} 5. Nxd4 {[%emt 0:00:08]} Bb4 {[%emt 0:06:42]} 6. Nxc6 {[%emt 0:00:07]} bxc6 {[%emt 0:00:07]} 7. Bd3 {[%emt 0:00:12]} h6 {[%emt 0:04:34]} 8. O-O {[%emt 0:02:01]} d6 {[%emt 0:03:10]} 9. h3 {[%emt 0:01:56]} O-O {[%emt 0:00:58]} 10. Qf3 {[%emt 0:02:38]} Bd7 {[%emt 0:07:52]} 11. Bf4 {[%emt 0:05:19]} Re8 {[%emt 0:04:25]} 12. a3 {[%emt 0:03:44]} Bc5 {[%emt 0:06:37]} 13. Rfe1 {[%emt 0:03:33]} Rb8 {[%emt 0:04:01]} 14. e5 {[%emt 0:05:03]} dxe5 {[%emt 0:03:15]} 15. Bxe5 {[%emt 0:00:38]} Bd6 {[%emt 0:02:08]} 16. Bxd6 {[%emt 0:03:40]} cxd6 {[%emt 0:00:08]} 17. b4 {[%emt 0:00:41]} d5 {[%emt 0:03:57]} 18. Na4 {[%emt 0:03:02]} a5 {[%emt 0:01:21]} 19. c3 {[%emt 0:02:04]} Re7 {[%emt 0:02:56]} 20. Rxe7 {[%emt 0:03:53]} Qxe7 {[%emt 0:00:35]} 21. bxa5 {[%emt 0:00:44]} c5 {[%emt 0:01:24]} 22. Nb6 {[%emt 0:01:08]} c4 {[%emt 0:00:37]} 23. Bf5 {[%emt 0:03:23]} Bxf5 {[%emt 0:01:39]} 24. Qxf5 {[%emt 0:00:13]} Qc5 {[%emt 0:00:19]} 25. Qe5 {[%emt 0:03:18]} Re8 {[%emt 0:01:36]} 26. Nd7 {[%emt 0:03:57]} Qc6 {[%emt 0:03:53]} 27. Nxf6+ {[%emt 0:01:34]} gxf6 {[%emt 0:00:05]} 28. Qf4 {[%emt 0:00:19]} Kg7 {[%emt 0:00:55]} 29. Rd1 {[%emt 0:01:40]} Qa8 {[%emt 0:00:52]} 30. Qg4+ {[%emt 0:02:37]} Kh7 {[%emt 0:00:25]} 31. Qf5+ {[%emt 0:00:29]} Kg7 {[%emt 0:01:02]} 32. Rxd5 {[%emt 0:01:24]} Qb8 {[%emt 0:00:32]} 33. g3 {[%emt 0:00:51]} Re1+ {[%emt 0:00:48]} 34. Kh2 {[%emt 0:00:11]} Qb2 {[%emt 0:00:41]} 35. Rd6 {[%emt 0:04:03]} Qxc3 {[%emt 0:00:46]} 36. Qg4+ {[%emt 0:01:00]} Kh7 {[%emt 0:01:07]} 37. Rd8 {[%emt 0:00:29]} Rh1+ {[%emt 0:02:57]} 38. Kxh1 {[%emt 0:00:45]} Qe1+ {[%emt 0:00:49]} 39. Kg2 {[%emt 0:02:00]} 1-0

[Event "DVM U14 2024"]
[Site "Heidelberg"]
[Date "2024.12.29"]
[Round "6"]
[White "Botschek, Marius"]
[Black "Riechenberg, Sebastian"]
[Result "0-1"]
[ECO "B23"]
[WhiteElo "1788"]
[BlackElo "2041"]
[Annotator "NA RC"]
[PlyCount "67"]
[EventDate "2024.12.23"]
[EventType "team-tourn"]
[EventRounds "7"]
[EventCountry "GER"]
[SourceTitle "playchess.com"]
[Source "ChessBase"]
[SourceQuality "1"]
[TimeControl "40/5400+30:1800+30"]

1. e4 {[%emt 0:00:02]} c5 {[%emt 0:00:12]} 2. Nc3 {[%emt 0:00:14]} d6 {[%emt 0:00:08]} 3. f4 {[%emt 0:00:06]} g6 {[%emt 0:00:07]} 4. Nf3 {[%emt 0:00:06]} Bg7 {[%emt 0:00:05]} 5. Bc4 {[%emt 0:00:22]} Nc6 {[%emt 0:00:09]} 6. O-O {[%emt 0:00:07]} e6 {[%emt 0:00:08]} 7. d3 {[%emt 0:01:07]} Nge7 {[%emt 0:00:13]} 8. Qe1 {[%emt 0:00:28]} O-O {[%emt 0:00:09]} 9. f5 {[%emt 0:02:14]} gxf5 {[%emt 0:00:07]} 10. Qh4 {[%emt 0:10:27]} fxe4 {[%emt 0:00:06]} 11. Nxe4 {[%emt 0:26:57]} Nf5 {[%emt 0:06:10]} 12. Qh5 {[%emt 0:00:59]} d5 {[%emt 0:01:14]} 13. Neg5 {[%emt 0:06:57]} h6 {[%emt 0:00:18]} 14. g4 {[%emt 0:00:56]} Nfd4 {[%emt 0:01:02]} 15. Bb3 {[%emt 0:01:30]} f6 {[%emt 0:03:04]} 16. Nxd4 {[%emt 0:01:22]} Nxd4 {[%emt 0:03:31]} 17. Nf3 {[%emt 0:00:37]} Ne2+ {[%emt 0:00:55]} 18. Kh1 {[%emt 0:00:15]} Nxc1 {[%emt 0:00:18]} 19. Raxc1 {[%emt 0:00:01]} Qe8 {[%emt 0:00:40]} 20. Qh4 {[%emt 0:03:16]} Bd7 {[%emt 0:01:41]} 21. Rce1 {[%emt 0:00:56]} Qg6 {[%emt 0:01:36]} 22. Rg1 {[%emt 0:08:56]} Rae8 {[%emt 0:02:16]} 23. Qf2 {[%emt 0:08:35]} b6 {[%emt 0:01:15]} 24. h4 {[%emt 0:01:43]} Bc6 {[%emt 0:00:23]} 25. h5 {[%emt 0:02:29]} Qf7 {[%emt 0:00:19]} 26. c3 {[%emt 0:03:06]} e5 {[%emt 0:00:33]} 27. Kh2 {[%emt 0:00:24]} f5 {[%emt 0:02:02]} 28. Bd1 {[%emt 0:06:33]} e4 {[%emt 0:02:20]} 29. Nh4 {[%emt 0:05:00]} fxg4 {[%emt 0:00:26]} 30. Qxf7+ {[%emt 0:00:22]} Rxf7 {[%emt 0:00:10]} 31. Rxg4 {[%emt 0:00:33]} exd3 {[%emt 0:02:49]} 32. Reg1 {[%emt 0:00:53]} Kh7 {[%emt 0:01:26]} 33. Nf5 {[%emt 0:02:17]} Be5+ {[%emt 0:00:23]} 34. Kh3 {[%emt 0:00:21]} 0-1

[Event "DVM U14 2024"]
[Site "Heidelberg"]
[Date "2024.12.29"]
[Round "6"]
[White "Shevchenko, Igor"]
[Black "Bock, Leonas"]
[Result "1-0"]
[ECO "D46"]
[WhiteElo "1788"]
[BlackElo "1668"]
[Annotator "NA RC"]
[PlyCount "77"]
[EventDate "2024.12.23"]
[EventType "team-tourn"]
[EventRounds "7"]
[EventCountry "GER"]
[SourceTitle "playchess.com"]
[Source "ChessBase"]
[SourceQuality "1"]
[TimeControl "40/5400+30:1800+30"]

1. d4 {[%emt 0:00:13]} d5 {[%emt 0:00:06]} 2. c4 {[%emt 0:00:03]} c6 {[%emt 0:00:10]} 3. Nc3 {[%emt 0:00:03]} Nf6 {[%emt 0:00:14]} 4. e3 {[%emt 0:00:06]} e6 {[%emt 0:01:07]} 5. Nf3 {[%emt 0:00:06]} Bd6 {[%emt 0:00:29]} 6. Bd3 {[%emt 0:00:39]} Nbd7 {[%emt 0:01:36]} 7. O-O {[%emt 0:00:09]} O-O {[%emt 0:00:06]} 8. e4 {[%emt 0:00:04]} dxe4 {[%emt 0:19:51]} 9. Nxe4 {[%emt 0:00:04]} Nxe4 {[%emt 0:01:27]} 10. Bxe4 {[%emt 0:00:15]} Nf6 {[%emt 0:32:39]} 11. Bc2 {[%emt 0:00:06]} h6 {[%emt 0:10:19]} 12. b3 {[%emt 0:02:36]} Re8 {[%emt 0:06:31]} 13. Bb2 {[%emt 0:04:00]} b5 {[%emt 0:09:49]} 14. Qd3 {[%emt 0:04:26]} bxc4 {[%emt 0:05:29]} 15. bxc4 {[%emt 0:00:17]} Ba6 {[%emt 0:01:00]} 16. Rfe1 {[%emt 0:01:53]} Rb8 {[%emt 0:03:18]} 17. Rab1 {[%emt 0:06:06]} Rb4 {[%emt 0:02:44]} 18. Bb3 {[%emt 0:01:12]} Qb8 {[%emt 0:00:25]} 19. Qc3 {[%emt 0:00:59]} Bc7 {[%emt 0:02:01]} 20. Ne5 {[%emt 0:01:04]} Bxe5 {[%emt 0:00:33]} 21. Rxe5 {[%emt 0:00:09]} Ng4 {[%emt 0:00:32]} 22. Rh5 {[%emt 0:01:01]} g6 {[%emt 0:00:31]} 23. Rh4 {[%emt 0:00:34]} h5 {[%emt 0:00:32]} 24. Re1 {[%emt 0:01:12]} Bxc4 {[%emt 0:00:27]} 25. Ba3 {[%emt 0:00:10]} Qf4 {[%emt 0:00:32]} 26. Rxg4 {[%emt 0:00:18]} Rxb3 {[%emt 0:00:29]} 27. axb3 {[%emt 0:00:12]} hxg4 {[%emt 0:00:18]} 28. bxc4 {[%emt 0:00:14]} Kh7 {[%emt 0:00:43]} 29. Bb2 {[%emt 0:00:26]} Rf8 {[%emt 0:00:31]} 30. d5 {[%emt 0:00:23]} f6 {[%emt 0:00:25]} 31. dxe6 {[%emt 0:00:16]} Qd6 {[%emt 0:00:35]} 32. Ba3 {[%emt 0:00:37]} c5 {[%emt 0:00:16]} 33. Bb2 {[%emt 0:00:09]} g5 {[%emt 0:00:33]} 34. e7 {[%emt 0:00:49]} Re8 {[%emt 0:00:34]} 35. Qxf6 {[%emt 0:00:07]} Qxf6 {[%emt 0:00:30]} 36. Bxf6 {[%emt 0:00:04]} Kg6 {[%emt 0:00:05]} 37. Re6 {[%emt 0:00:15]} Kf7 {[%emt 0:00:47]} 38. Rd6 {[%emt 0:00:39]} Rb8 {[%emt 0:00:41]} 39. g3 {[%emt 0:00:06]} 1-0

[Event "DVM U14 2024"]
[Site "Heidelberg"]
[Date "2024.12.29"]
[Round "6"]
[White "Meijers, Janis"]
[Black "Rodriguez Klasen, Ennio"]
[Result "0-1"]
[ECO "A59"]
[WhiteElo "1783"]
[BlackElo "1870"]
[Annotator "NA RC"]
[PlyCount "92"]
[EventDate "2024.12.23"]
[EventType "team-tourn"]
[EventRounds "7"]
[EventCountry "GER"]
[SourceTitle "playchess.com"]
[Source "ChessBase"]
[SourceQuality "1"]
[TimeControl "40/5400+30:1800+30"]

1. d4 {[%emt 0:00:02]} Nf6 {[%emt 0:00:14]} 2. c4 {[%emt 0:00:04]} c5 {[%emt 0:00:11]} 3. d5 {[%emt 0:00:04]} b5 {[%emt 0:00:12]} 4. cxb5 {[%emt 0:00:04]} a6 {[%emt 0:00:13]} 5. bxa6 {[%emt 0:00:05]} g6 {[%emt 0:00:33]} 6. Nc3 {[%emt 0:00:19]} Bxa6 {[%emt 0:00:39]} 7. e4 {[%emt 0:00:15]} Bxf1 {[%emt 0:00:14]} 8. Kxf1 {[%emt 0:00:06]} d6 {[%emt 0:00:10]} 9. Nf3 {[%emt 0:00:22]} Bg7 {[%emt 0:00:10]} 10. g3 {[%emt 0:00:22]} O-O {[%emt 0:00:25]} 11. Kg2 {[%emt 0:00:07]} Nbd7 {[%emt 0:00:48]} 12. Qc2 {[%emt 0:04:30]} Qc7 {[%emt 0:05:03]} 13. Nb5 {[%emt 0:04:12]} Qb7 {[%emt 0:03:53]} 14. a4 {[%emt 0:01:52]} Rfc8 {[%emt 0:08:06]} 15. Ra3 {[%emt 0:03:31]} c4 {[%emt 0:20:09]} 16. Be3 {[%emt 0:13:30]} Nc5 {[%emt 0:03:44]} 17. Bxc5 {[%emt 0:01:08]} Rxc5 {[%emt 0:00:46]} 18. Nfd4 {[%emt 0:12:13]} Rac8 {[%emt 0:14:05]} 19. Nc6 {[%emt 0:09:11]} Nxd5 {[%emt 0:16:00]} 20. exd5 {[%emt 0:00:08]} Rxd5 {[%emt 0:02:52]} 21. Nba7 {[%emt 0:00:36]} Rxc6 {[%emt 0:02:35]} 22. Nxc6 {[%emt 0:00:17]} Qxc6 {[%emt 0:00:36]} 23. f3 {[%emt 0:04:14]} Qb6 {[%emt 0:05:03]} 24. Rf1 {[%emt 0:07:33]} Bxb2 {[%emt 0:04:56]} 25. Ra2 {[%emt 0:04:33]} c3 {[%emt 0:00:29]} 26. Rf2 {[%emt 0:08:46]} Qb4 {[%emt 0:01:46]} 27. a5 {[%emt 0:04:51]} Rxa5 {[%emt 0:00:59]} 28. Rxa5 {[%emt 0:00:07]} Qxa5 {[%emt 0:00:01]} 29. Qe4 {[%emt 0:00:14]} Qc7 {[%emt 0:02:20]} 30. Rc2 {[%emt 0:01:44]} Qa7 {[%emt 0:01:13]} 31. f4 {[%emt 0:01:46]} e6 {[%emt 0:01:21]} 32. g4 {[%emt 0:02:25]} d5 {[%emt 0:02:21]} 33. Qd3 {[%emt 0:00:38]} Qa4 {[%emt 0:00:53]} 34. Rf2 {[%emt 0:00:26]} Qa8 {[%emt 0:01:42]} 35. h4 {[%emt 0:02:53]} d4+ {[%emt 0:00:36]} 36. Kg3 {[%emt 0:00:12]} Qd5 {[%emt 0:00:40]} 37. f5 {[%emt 0:04:06]} Ba3 {[%emt 0:01:17]} 38. fxe6 {[%emt 0:00:53]} Bd6+ {[%emt 0:00:25]} 39. Rf4 {[%emt 0:00:23]} Bxf4+ {[%emt 0:00:11]} 40. Kxf4 {[%emt 0:00:16]} Qxe6 {[%emt 0:01:01]} 41. Qxd4 {[%emt 0:30:29]} c2 {[%emt 0:02:07]} 42. Qc3 {[%emt 0:00:00]} Qd6+ {[%emt 0:05:14]} 43. Ke4 {[%emt 0:00:00]} Qe7+ {[%emt 0:01:48]} 44. Kf3 {[%emt 0:00:00]} Qxh4 {[%emt 0:03:10]} 45. Qc8+ {[%emt 0:00:00]} Kg7 {[%emt 0:00:11]} 46. Qc3+ {[%emt 0:00:00]} Qf6+ {[%emt 0:00:10]} 0-1

[Event "DVM U14 2024"]
[Site "Heidelberg"]
[Date "2024.12.29"]
[Round "6"]
[White "Kommessin, Felix"]
[Black "Kaplan, Arne"]
[Result "1/2-1/2"]
[ECO "B22"]
[WhiteElo "1757"]
[BlackElo "1710"]
[Annotator "NA RC"]
[PlyCount "69"]
[EventDate "2024.12.23"]
[EventType "team-tourn"]
[EventRounds "7"]
[EventCountry "GER"]
[SourceTitle "playchess.com"]
[Source "ChessBase"]
[SourceQuality "1"]
[TimeControl "40/5400+30:1800+30"]

1. e4 {[%emt 0:00:03]} c5 {[%emt 0:00:08]} 2. d4 {[%emt 0:00:04]} cxd4 {[%emt 0:00:06]} 3. c3 {[%emt 0:00:04]} Nf6 {[%emt 0:00:11]} 4. e5 {[%emt 0:00:04]} Nd5 {[%emt 0:00:06]} 5. Nf3 {[%emt 0:00:05]} d6 {[%emt 0:00:06]} 6. exd6 {[%emt 0:00:26]} Qxd6 {[%emt 0:00:10]} 7. cxd4 {[%emt 0:00:38]} Nc6 {[%emt 0:00:18]} 8. Be2 {[%emt 0:01:00]} Bg4 {[%emt 0:03:04]} 9. O-O {[%emt 0:00:22]} e6 {[%emt 0:00:19]} 10. Nc3 {[%emt 0:00:52]} Be7 {[%emt 0:02:34]} 11. a3 {[%emt 0:04:56]} O-O {[%emt 0:04:14]} 12. h3 {[%emt 0:10:11]} Bh5 {[%emt 0:02:11]} 13. Ne4 {[%emt 0:03:16]} Qd8 {[%emt 0:06:57]} 14. Ng3 {[%emt 0:01:02]} Bg6 {[%emt 0:04:30]} 15. Bd3 {[%emt 0:00:50]} Bxd3 {[%emt 0:01:30]} 16. Qxd3 {[%emt 0:02:07]} Qb6 {[%emt 0:03:41]} 17. b4 {[%emt 0:06:02]} a6 {[%emt 0:03:33]} 18. Ne4 {[%emt 0:02:02]} Rfd8 {[%emt 0:04:47]} 19. Rd1 {[%emt 0:02:21]} Nf6 {[%emt 0:04:34]} 20. Bg5 {[%emt 0:10:23]} Nxe4 {[%emt 0:02:59]} 21. Qxe4 {[%emt 0:01:31]} h6 {[%emt 0:02:33]} 22. Be3 {[%emt 0:02:33]} Rd5 {[%emt 0:03:34]} 23. Ne5 {[%emt 0:03:43]} Rad8 {[%emt 0:02:53]} 24. Nxc6 {[%emt 0:01:04]} Qxc6 {[%emt 0:00:23]} 25. Rac1 {[%emt 0:05:47]} Qb6 {[%emt 0:01:54]} 26. Rc4 {[%emt 0:00:22]} a5 {[%emt 0:12:25]} 27. bxa5 {[%emt 0:01:48]} Qxa5 {[%emt 0:00:26]} 28. a4 {[%emt 0:00:19]} Bf6 {[%emt 0:02:48]} 29. Rd2 {[%emt 0:06:54]} Qa6 {[%emt 0:04:18]} 30. Rb4 {[%emt 0:02:34]} Ra5 {[%emt 0:02:07]} 31. Ra2 {[%emt 0:05:07]} Rad5 {[%emt 0:02:20]} 32. Rd2 {[%emt 0:03:46]} Be7 {[%emt 0:00:34]} 33. Rbb2 {[%emt 0:01:12]} Qxa4 {[%emt 0:01:03]} 34. Rxb7 {[%emt 0:01:04]} Bf6 {[%emt 0:00:44]} 35. Rb1 {[%emt 0:08:28]} 1/2-1/2

[Event "DVM U14 2024"]
[Site "Heidelberg"]
[Date "2024.12.29"]
[Round "6"]
[White "Han, Erdem"]
[Black "Noennig, Jakob"]
[Result "0-1"]
[ECO "D37"]
[WhiteElo "1751"]
[BlackElo "2065"]
[Annotator "NA RC"]
[PlyCount "84"]
[EventDate "2024.12.23"]
[EventType "team-tourn"]
[EventRounds "7"]
[EventCountry "GER"]
[SourceTitle "playchess.com"]
[Source "ChessBase"]
[SourceQuality "1"]
[TimeControl "40/5400+30:1800+30"]

1. d4 {[%emt 0:00:01]} d5 {[%emt 0:00:06]} 2. c4 {[%emt 0:00:05]} e6 {[%emt 0:00:06]} 3. Nc3 {[%emt 0:00:08]} Nf6 {[%emt 0:00:17]} 4. Nf3 {[%emt 0:00:16]} Be7 {[%emt 0:00:22]} 5. Bf4 {[%emt 0:01:09]} O-O {[%emt 0:00:32]} 6. c5 {[%emt 0:01:02]} c6 {[%emt 0:16:52]} 7. e3 {[%emt 0:02:03]} Nbd7 {[%emt 0:01:02]} 8. h3 {[%emt 0:02:10]} Ne4 {[%emt 0:08:15]} 9. Qc2 {[%emt 0:11:38]} f5 {[%emt 0:07:49]} 10. Bd3 {[%emt 0:03:42]} Ndf6 {[%emt 0:04:03]} 11. O-O {[%emt 0:01:47]} Qe8 {[%emt 0:02:34]} 12. b4 {[%emt 0:06:37]} Kh8 {[%emt 0:03:01]} 13. a4 {[%emt 0:03:22]} Rg8 {[%emt 0:02:15]} 14. Bxe4 {[%emt 0:10:53]} fxe4 {[%emt 0:02:30]} 15. Ne5 {[%emt 0:03:13]} Bd7 {[%emt 0:07:51]} 16. Rfb1 {[%emt 0:06:27]} g5 {[%emt 0:04:08]} 17. Bh2 {[%emt 0:01:37]} g4 {[%emt 0:02:13]} 18. hxg4 {[%emt 0:08:13]} Nxg4 {[%emt 0:00:13]} 19. Nxg4 {[%emt 0:04:39]} Rxg4 {[%emt 0:00:05]} 20. Be5+ {[%emt 0:01:17]} Kg8 {[%emt 0:00:04]} 21. b5 {[%emt 0:04:43]} Qg6 {[%emt 0:12:10]} 22. g3 {[%emt 0:01:22]} Rf8 {[%emt 0:00:23]} 23. Ne2 {[%emt 0:03:06]} h5 {[%emt 0:02:37]} 24. Nf4 {[%emt 0:04:26]} Qf5 {[%emt 0:02:58]} 25. bxc6 {[%emt 0:04:04]} Bxc6 {[%emt 0:00:05]} 26. Kf1 {[%emt 0:01:19]} Rf7 {[%emt 0:03:23]} 27. Ke2 {[%emt 0:02:25]} Rh7 {[%emt 0:01:11]} 28. Rh1 {[%emt 0:04:44]} Kf8 {[%emt 0:01:28]} 29. Rh2 {[%emt 0:01:10]} Rg5 {[%emt 0:03:02]} 30. Rah1 {[%emt 0:01:48]} Bd8 {[%emt 0:03:01]} 31. Rh4 {[%emt 0:01:40]} Qf7 {[%emt 0:02:45]} 32. Ke1 {[%emt 0:01:22]} Rxe5 {[%emt 0:02:53]} 33. dxe5 {[%emt 0:01:20]} Bxh4 {[%emt 0:00:11]} 34. Rxh4 {[%emt 0:00:28]} Qf5 {[%emt 0:02:22]} 35. Qd1 {[%emt 0:01:12]} Be8 {[%emt 0:00:12]} 36. g4 {[%emt 0:01:01]} Qxe5 {[%emt 0:01:12]} 37. gxh5 {[%emt 0:00:52]} Ke7 {[%emt 0:02:54]} 38. Qb3 {[%emt 0:00:41]} Kd8 {[%emt 0:01:42]} 39. Qb4 {[%emt 0:01:04]} Qa1+ {[%emt 0:00:36]} 40. Ke2 {[%emt 0:00:23]} Kc8 {[%emt 0:00:25]} 41. h6 Bxa4 42. Qd2 Bb5+ {[%emt 0:31:00]} 0-1